fUSD/lending_fUSD_20240227
["ID","MTS","AMOUNT","RATE_DAILY","PERIOD"]
[315398455,1709011832109,-559.82747446,0.00021,2]
[315398461,1709011832152,-784.96015457,0.00021,2]
[315398463,1709011832163,-9908.23979536,0.00021,2]
[315398468,1709011832197,-3177.19110392,0.00021,2]
[315398470,1709011832206,-153.37046627,0.00021,2]
[315398472,1709011832216,-344.82,0.00021017,2]
[315398474,1709011832225,-344.82,0.00021017,2]
[315398476,1709011832234,-155.27,0.00021131,2]
[315398478,1709011832243,-150.0,0.00021137,2]
[315398480,1709011832253,-150.0,0.00021137,2]
[315398482,1709011832262,-686.80031797,0.00021254,2]
[315398484,1709011832271,-155.0,0.00021291,2]
[315398486,1709011832281,-162.34325155,0.00021295,2]
[315398488,1709011832290,-300.0,0.00021328,2]
[315398490,1709011832299,-150.0,0.00021328,2]
[315398492,1709011832308,-349.31,0.00021328,2]
[315398494,1709011832316,-152.18,0.00021328,2]
[315398496,1709011832326,-300.0,0.00021342,2]
[315398498,1709011832335,-413.51,0.00021342,2]
[315398500,1709011832344,-413.51,0.00021342,2]
[315398502,1709011832353,-1280.73,0.00021369,2]
[315398504,1709011832362,-297.52,0.0002145,2]
[315398506,1709011832372,-152.0,0.00021481,4]
[315398508,1709011832381,-1002.26427603,0.000215,2]
[315398510,1709011832390,-162.34325155,0.00021598,2]
[315398512,1709011832399,-316.17,0.0002165,2]
[315398514,1709011832408,-167.3,0.00021653,2]
[315398516,1709011832417,-1231.0,0.00021853,2]
[315398518,1709011832426,-1955.0,0.00021853,2]
[315398520,1709011832435,-1258.0,0.00021853,2]
[315398522,1709011832444,-601.0,0.00021853,2]
[315398524,1709011832453,-217.0,0.00021853,2]
[315398526,1709011832463,-277.0,0.00021853,2]
[315398528,1709011832472,-1008.0,0.00021853,2]
[315398530,1709011832481,-439.663,0.00021853,2]
[315398532,1709011832490,-860.0,0.00021853,2]
[315398534,1709011832500,-2907.0,0.00021853,2]
[315398536,1709011832509,-1454.0,0.00021853,2]
[315398538,1709011832518,-338.0,0.00021853,2]
[315398540,1709011832527,-1137.0,0.00021853,2]
[315398542,1709011832539,-322.0,0.00021853,2]
[315398544,1709011832548,-162.0,0.00021853,2]
[315398546,1709011832557,-150.0,0.00021853,2]
[315398548,1709011832567,-392.0,0.00021853,2]
[315398550,1709011832577,-298.0,0.00021853,2]
[315398552,1709011832586,-1790.7139006,0.00021853,2]
[315398569,1709011832740,-266.1619309,0.00021853,2]
[315398572,1709011832756,-6135.1241685,0.00021853,2]
[315398574,1709011832766,-4897.68,0.00021853,2]
[315398576,1709011832776,-6262.999,0.00021853,2]
[315398578,1709011832785,-1372.0,0.00021853,2]
[315398580,1709011832794,-9189.31286895,0.00021853,2]
[315398582,1709011832806,-2015.07539376,0.00021853,2]
[315398585,1709011832818,-839.01441451,0.00021853,2]
[315398587,1709011832829,-475.26765531,0.00021853,2]
[315398656,1709011839439,-6357.88568736,0.00021853,2]
[315398662,1709011839483,-1038.44398011,0.00021853,2]
[315398664,1709011839493,-839.41432308,0.00021853,2]
[315398712,1709011840179,-300.0,0.00021853,2]
[315398720,1709011840249,-1157.58567692,0.00021853,2]
[315398722,1709011840259,-1042.49993672,0.00021853,2]
[315398727,1709011840291,-518.51,0.00021853,2]
[315398743,1709011840435,-1375.99006328,0.00021853,2]
[315398745,1709011840444,-1348.99863671,0.00021853,2]
[315398748,1709011840456,-1114.4982,0.00021853,2]
[315399118,1709011843799,-234.50316329,0.00021853,2]
[315399120,1709011843809,-155.27,0.00021879,2]
[315399122,1709011843818,-252.00683671,0.0002189,2]
[315399133,1709011843915,-434.79348127,0.0002189,2]
[315399135,1709011843925,-1457.1375011,0.00021899,2]
[315399360,1709011846071,-4112.0,0.00021748,2]
[315399362,1709011846081,-677.34805282,0.0002187,2]
[315399364,1709011846091,-45844.5276161,0.00021899,2]
[315399417,1709011892983,-51000.0,0.00024,30]
[315399418,1709011944446,-359.47823459,0.00020899,2]
[315399419,1709011949378,381.04353082,0.00020898,2]
[315399420,1709011949398,359.47823459,0.00020898,2]
[315399421,1709012586423,-500000.0,0.00024,30]
[315399422,1709012684131,500.0,0.00027,120]
[315399423,1709012703242,503.0,0.0002312,30]
[315399424,1709012842310,-150.40806474,0.00016749,2]
[315399425,1709012846131,-210.36220085,0.00016749,2]
[315399426,1709012865176,-1552.80476262,0.00016749,2]
[315399427,1709012865200,-359.47823459,0.0001675,2]
[315399428,1709012865223,-454.0,0.00017673,2]
[315399429,1709012865248,-962.76,0.00018036,2]
[315399430,1709012865271,-833.57140238,0.000182,2]
[315399431,1709012865295,-150.0,0.00018438,2]
[315399432,1709012865320,-597.558463,0.00018468,2]
[315399433,1709012865350,-155.0,0.00018509,2]
[315399434,1709012865373,-454.0,0.00018509,2]
[315399435,1709012865395,-151.98287603,0.00019053,2]
[315399436,1709012865421,-1006.72,0.00019259,2]
[315399437,1709012865445,-150.0,0.00019483,2]
[315399438,1709012865468,-189.71,0.00019484,2]
[315399439,1709012865492,-23900.0,0.00019484,2]
[315399440,1709012865516,-283.89,0.0001961,2]
[315399441,1709012865539,-500.0,0.00019635,2]
[315399442,1709012865563,-250.0,0.00019663,2]
[315399443,1709012865586,-2491.31,0.00020041,2]
[315399444,1709012865610,-155.16,0.00020052,2]
[315399445,1709012865633,-432.67,0.00020053,2]
[315399446,1709012865657,-10484.36,0.00020053,2]
[315399447,1709012865681,-810.29,0.0002014,2]
[315399448,1709012865705,-2562.09,0.00020142,2]
[315399449,1709012865729,-161.66343853,0.00020172,2]
[315399450,1709012865752,-24328.02695842,0.00020251,2]
[315399451,1709012865775,-2500.4,0.00020253,2]
[315399452,1709012865799,-962.76,0.000203,2]
[315399453,1709012865827,-2507.65,0.00020374,2]
[315399454,1709012865853,-2561.81,0.00020501,2]
[315399455,1709012865875,-39875.3083,0.0002054,2]
[315399456,1709012865898,-2000.0,0.00020548,2]
[315399457,1709012865921,-155.0,0.00020591,2]
[315399458,1709012865944,-454.0,0.00020591,2]
[315399459,1709012865966,-2797.0,0.000206,2]
[315399460,1709012865991,-2535.92,0.0002064,2]
[315399461,1709012866015,-161.66343853,0.00020748,2]
[315399462,1709012866038,-227.23,0.00020789,3]
[315399463,1709012866061,-2538.35,0.00020789,2]
[315399464,1709012866084,-33623.8353,0.00020799,2]
[315399465,1709012866106,-339.97235171,0.00020898,2]
[315399466,1709012866127,-2556.28,0.000209,2]
[315399467,1709012866149,-2570.49,0.000209,2]
[315399468,1709012866172,-43998.1457,0.000209,2]
[315399469,1709012866195,-1006.72,0.00020903,2]
[315399470,1709012866218,-153.0,0.00020933,2]
[315399471,1709012866241,-1194.0,0.00020933,2]
[315399472,1709012866263,-150.0,0.00020978,2]
[315399473,1709012866285,-643.5101,0.00021,2]
[315399474,1709012866307,-344.82,0.00021078,2]
[315399475,1709012866329,-200.0,0.00021122,2]
[315399476,1709012866351,-150.0,0.00021137,2]
[315399477,1709012866374,-150.0,0.00021137,2]
[315399478,1709012866396,-301.91,0.00021137,2]
[315399479,1709012866418,-424.18,0.00021137,2]
[315399480,1709012866440,-424.18,0.00021137,2]
[315399481,1709012866463,-150.0,0.00021137,2]
[315399482,1709012866485,-424.18,0.00021137,2]
[315399483,1709012866509,-424.18,0.00021137,2]
[315399484,1709012866532,-424.18,0.00021137,2]
[315399485,1709012866554,-848.36,0.00021137,2]
[315399486,1709012866577,-424.18,0.00021137,2]
[315399487,1709012866602,-424.18,0.00021137,2]
[315399488,1709012866627,-424.18,0.00021137,2]
[315399489,1709012866651,-424.18,0.00021137,2]
[315399490,1709012866676,-147.19867419,0.00021137,2]
[315399491,1709012949147,-206.0,0.00015759,2]
[315399492,1709012949166,-150.0,0.00017,2]
[315399493,1709012957863,-155.0,0.00017339,4]
[315399496,1709012969117,-51.0,0.00017339,4]
[315399510,1709013031999,-206.0,0.00018919,6]
[315399511,1709013032011,-1325.9762125,0.00020264,2]
[315399512,1709013032023,-404.94691351,0.00020264,2]
[315399513,1709013032038,-778.77687399,0.00020264,2]
[315399514,1709013032049,-2359.27701147,0.00020374,2]
[315399515,1709013032108,-162.49298853,0.00020374,2]
[315399516,1709013032117,-359.47823459,0.00020493,2]
[315399517,1709013032126,-1145.16690573,0.00020494,2]
[315399518,1709013032143,-518.79841674,0.00020494,2]
[315399519,1709013032155,-838.21467753,0.00020494,2]
[315399520,1709013032163,-28.0897119,0.00020499,8]
[315399521,1709013032175,-177.9102881,0.00020499,8]
[315399522,1709013032184,-159.7006842,0.0002053,2]
[315399523,1709013032195,-842.0389362,0.00020631,2]
[315399524,1709013032206,-450.25,0.00020631,2]
[315399525,1709013032236,-707.7110638,0.00020631,2]
[315399526,1709013032245,-134.55428616,0.00020641,2]
[315399527,1709013032257,-573.44571384,0.00020641,2]
[315399528,1709013032266,-154.0,0.00020641,2]
[315399529,1709013032275,-63.80251001,0.00020661,2]
[315399530,1709013033946,-436.19748999,0.00020661,2]
[315399531,1709013033957,-431.92747673,0.00020977,2]
[315399532,1709013034001,-257.71252327,0.00020977,2]
[315399533,1709013034011,-344.94,0.00020978,2]
[315399534,1709013034022,-159.70068418,0.00020987,2]
[315399535,1709013034033,-150.0,0.00021,2]
[315399536,1709013034043,-155.0,0.00021137,2]
[315399537,1709013034053,-155.0,0.00021137,2]
[315399538,1709013034063,-276.98132581,0.00021137,2]
[315399539,1709013034073,-424.18,0.00021137,2]
[315399540,1709013034083,-848.36,0.00021137,2]
[315399541,1709013034092,-424.18,0.00021137,2]
[315399542,1709013034102,-150.0,0.0002116,2]
[315399543,1709013034112,-919.07,0.00021161,2]
[315399544,1709013034123,-813.69,0.00021161,2]
[315399545,1709013034136,-919.07,0.00021161,2]
[315399546,1709013034146,-919.07,0.00021161,2]
[315399547,1709013034156,-406.91,0.00021161,2]
[315399548,1709013034165,-406.91,0.00021161,2]
[315399549,1709013034176,-293.98372975,0.00021161,2]
[315399550,1709013034212,-609.33627025,0.00021161,2]
[315399551,1709013034222,-208.33702216,0.00021178,2]
[315399553,1709013034234,-481.30297784,0.00021178,2]
[315399555,1709013034244,-150.0,0.00021178,2]
[315399556,1709013034253,-159.0,0.00021233,2]
[315399557,1709013034263,-344.82,0.000213,2]
[315399558,1709013034273,-155.27,0.00021343,2]
[315399559,1709013034283,-2100.51852728,0.00021354,2]
[315399560,1709013034306,-385.21147272,0.00021354,2]
[315399561,1709013034315,-159.70068418,0.00021443,2]
[315399562,1709013034324,-150.0,0.00021451,2]
[315399563,1709013034333,-499.99,0.0002152,2]
[315399564,1709013034343,-297.52,0.0002152,2]
[315399565,1709013034353,-409.05,0.00021534,2]
[315399566,1709013034362,-2519.87,0.00021599,2]
[315399567,1709013034372,-1000.0,0.00021653,2]
[315399568,1709013034381,-161.88028768,0.00021678,2]
[315399569,1709013034391,-406.91,0.000217,2]
[315399570,1709013034401,-344.82,0.000217,2]
[315399571,1709013034414,-919.07,0.000217,2]
[315399572,1709013034423,-416.3,0.000217,2]
[315399573,1709013034433,-150.0,0.000217,2]
[315399574,1709013034444,-708.0,0.00021737,2]
[315399575,1709013034454,-154.0,0.00021737,2]
[315399576,1709013034465,-2210.02972272,0.00021748,2]
[315399577,1709013034478,-373.90027728,0.00021748,2]
[315399578,1709013034487,-92.12870445,0.00021753,2]
[315399581,1709013037669,-2605.87129555,0.00021753,2]
[315399582,1709013037681,-514.44,0.00021753,2]
[315399583,1709013037695,-997.76689179,0.00021753,2]
[315399584,1709013037711,-223.23310821,0.00021753,2]
[315399585,1709013037723,-154.41629308,0.00021753,2]
[315399586,1709013037788,-62.58370692,0.00021753,2]
[315399587,1709013037800,-321.69898062,0.00021753,2]
[315399588,1709013037815,-1406.0952119,0.00021753,2]
[315399596,1709013039244,-227.20580748,0.00021753,2]
[315399598,1709013039254,-41.4429805,0.00021753,2]
[315399646,1709013039650,-1002.54139984,0.00021753,2]
[315399649,1709013039664,-214.01561966,0.00021753,2]
[315399651,1709013039673,-601.0,0.00021753,2]
[315399652,1709013039682,-431.0,0.00021753,2]
[315399654,1709013039691,-277.0,0.00021753,2]
[315399656,1709013039700,-1008.0,0.00021753,2]
[315399658,1709013039709,-860.0,0.00021753,2]
[315399660,1709013039719,-1137.0,0.00021753,2]
[315399662,1709013039728,-322.0,0.00021753,2]
[315399664,1709013039737,-2907.0,0.00021753,2]
[315399667,1709013039746,-338.0,0.00021753,2]
[315399669,1709013039756,-812.69097145,0.00021753,2]
[315399671,1709013039768,-641.30902855,0.00021753,2]
[315399673,1709013039778,-392.0,0.00021753,2]
[315399675,1709013039786,-298.0,0.00021753,2]
[315399677,1709013039796,-2932.0,0.00021753,2]
[315399679,1709013039804,-8192.0,0.00021753,2]
[315399681,1709013039813,-4112.0,0.00021753,2]
[315399683,1709013039822,-170.192,0.00021753,2]
[315399685,1709013039832,-10856.713,0.00021753,2]
[315399687,1709013039841,-2608.76613818,0.00021753,2]
[315399690,1709013039858,-9670.89686182,0.00021753,2]
[315399692,1709013039867,-150.0,0.00021753,2]
[315399694,1709013039878,-200.0,0.00021763,2]
[315399696,1709013039887,-500.0,0.00021763,2]
[315399698,1709013039899,-46532.1636,0.000218,2]
[315399700,1709013039908,-200.0,0.000218,2]
[315399702,1709013039917,-344.82,0.00021804,2]
[315399704,1709013039925,-344.82,0.00021804,2]
[315399706,1709013039936,-1000.0,0.00021859,2]
[315399708,1709013039947,-189.36,0.0002189,3]
[315399710,1709013039956,-568.08,0.0002189,3]
[315399712,1709013039967,-556.4029,0.00021899,2]
[315399714,1709013039976,-326.58501441,0.00021899,5]
[315399716,1709013039985,-1124.519999,0.000219,2]
[315399718,1709013039994,-55555.0,0.000219,2]
[315399720,1709013040003,-5000.0,0.000219,2]
[315399722,1709013040012,-605.11117046,0.000219,5]
[315399724,1709013040021,-309.08475553,0.000219,2]
[315399726,1709013040030,-797.77871408,0.000219,2]
[315399728,1709013040040,-159.70068418,0.000219,2]
[315399730,1709013040049,-200.0,0.00021918,2]
[315399732,1709013040058,-800.0,0.00021918,2]
[315399734,1709013040067,-800.0,0.00021918,2]
[315399736,1709013040076,-800.0,0.00021918,2]
[315399738,1709013040085,-157.6,0.00021918,2]
[315399740,1709013040094,-160.65,0.00021918,2]
[315399742,1709013040103,-306.71,0.00021918,2]
[315399744,1709013040112,-189.71,0.00021919,2]
[315399746,1709013040122,-413.51,0.00021933,2]
[315399748,1709013040131,-155.0,0.00021963,2]
[315399750,1709013040140,-486.10758316,0.00021964,2]
[315399752,1709013040149,-12435.31051828,0.00021964,2]
[315399754,1709013040158,-4987.33823048,0.00021976,2]
[315399756,1709013040167,-157.32926695,0.00021976,2]
[315399758,1709013040176,-207.55759471,0.00021979,2]
[315399760,1709013040185,-515.37585207,0.00021979,2]
[315399762,1709013040196,-196.68270781,0.00021979,2]
[315399764,1709013040206,-741.63490598,0.00021979,2]
[315399767,1709013040215,-399.14922059,0.00021979,2]
[315399770,1709013040224,-196.68270781,0.00021979,2]
[315399772,1709013040234,-741.63490598,0.0002198,2]
[315399774,1709013040243,-15895.8098832,0.0002198,2]
[315399776,1709013040252,-266.9885662,0.0002198,2]
[315399778,1709013040261,-399.14922059,0.0002198,2]
[315399780,1709013040271,-266.9885662,0.00021981,2]
[315399782,1709013040280,-515.37585207,0.00021981,2]
[315399784,1709013040290,-2060.09696093,0.00021981,2]
[315399786,1709013040299,-2060.09696093,0.00021981,2]
[315399788,1709013040308,-312.60779563,0.00021981,2]
[315399790,1709013040318,-162.55605373,0.00021982,2]
[315399792,1709013040327,-515.37585207,0.00021982,2]
[315399794,1709013040335,-312.60779563,0.00021982,2]
[315399796,1709013040345,-399.14922059,0.00021983,2]
[315399798,1709013040355,-3491.42498767,0.00021983,2]
[315399800,1709013040365,-1256.91299561,0.00021983,2]
[315399802,1709013040374,-528.0960203,0.00021983,2]
[315399804,1709013040383,-452.48867847,0.00021983,2]
[315399806,1709013040393,-274.60993056,0.00021983,2]
[315399808,1709013040402,-15895.8098832,0.00021983,2]
[315399810,1709013040412,-266.9885662,0.00021985,2]
[315399812,1709013040421,-235.2941128,0.00021985,2]
[315399814,1709013040431,-162.55605373,0.00021986,2]
[315399816,1709013040440,-274.60993056,0.00021986,2]
[315399818,1709013040450,-528.0960203,0.00021986,2]
[315399821,1709013040461,-196.68270781,0.00021986,2]
[315399823,1709013040470,-196.68270781,0.00021986,2]
[315399825,1709013040480,-5722.491558,0.00021987,2]
[315399827,1709013040489,-266.9885662,0.00021987,2]
[315399829,1709013040498,-2060.09696093,0.00021987,2]
[315399831,1709013040507,-274.60993056,0.00021987,2]
[315399833,1709013040516,-235.2941128,0.00021988,2]
[315399835,1709013040526,-312.60779563,0.00021989,2]
[315399837,1709013040535,-9698.40274341,0.00021989,2]
[315399839,1709013040544,-1022.17,0.00021989,2]
[315399841,1709013040553,-3491.42498767,0.00021989,2]
[315399843,1709013040562,-1022.17,0.00021989,2]
[315399845,1709013040572,-207.55759471,0.0002199,2]
[315399847,1709013040581,-741.63490598,0.0002199,2]
[315399849,1709013040590,-1000.0,0.0002199,2]
[315399851,1709013040599,-1500.0,0.0002199,2]
[315399853,1709013040607,-1022.17,0.0002199,2]
[315399854,1709013040616,-1022.17,0.0002199,2]
[315399856,1709013040626,-1022.17,0.0002199,2]
[315399858,1709013040635,-1022.17,0.0002199,2]
[315399860,1709013040644,-1022.17,0.0002199,2]
[315399862,1709013040653,-1022.17,0.0002199,2]
[315399864,1709013040690,-1022.17,0.0002199,2]
[315399866,1709013040700,-1022.17,0.0002199,2]
[315399869,1709013040709,-528.0960203,0.00021991,2]
[315399871,1709013040718,-274.60993056,0.00021991,2]
[315399872,1709013040728,-399.14922059,0.00021992,2]
[315399874,1709013040737,-452.48867847,0.00021992,2]
[315399876,1709013040747,-3491.42498767,0.00021992,2]
[315399879,1709013040756,-1256.91299561,0.00021992,2]
[315399881,1709013040766,-15895.8098832,0.00021992,2]
[315399883,1709013040775,-235.2941128,0.00021993,2]
[315399885,1709013040784,-2060.09696093,0.00021993,2]
[315399887,1709013040794,-9698.40274341,0.00021993,2]
[315399889,1709013040802,-162.55605373,0.00021993,2]
[315399890,1709013040811,-162.55605373,0.00021993,2]
[315399891,1709013040820,-207.55759471,0.00021993,2]
[315399892,1709013040830,-5722.491558,0.00021995,2]
[315399893,1709013040839,-528.0960203,0.00021995,2]
[315399894,1709013040848,-1256.91299561,0.00021995,2]
[315399895,1709013040857,-1256.91299561,0.00021995,2]
[315399896,1709013040866,-741.63490598,0.00021995,2]
[315399897,1709013040875,-9698.40274341,0.00021996,2]
[315399898,1709013040886,-452.48867847,0.00021996,2]
[315399899,1709013040896,-235.2941128,0.00021996,2]
[315399900,1709013040905,-291.19287655,0.00021997,2]
[315399902,1709013040914,-1213.29218051,0.00021997,2]
[315399904,1709013040924,-155.35612158,0.00021997,2]
[315399906,1709013040934,-155.21659405,0.00021997,2]
[315399908,1709013040943,-1171.19282098,0.00021998,2]
[315399910,1709013040953,-5722.491558,0.00021998,2]
[315399912,1709013040962,-326.58501441,0.00021998,10]
[315399914,1709013040973,-326.58501441,0.00021998,10]
[315399916,1709013040982,-326.58501441,0.00021998,10]
[315399918,1709013040991,-326.58501441,0.00021998,10]
[315399920,1709013041000,-326.58501442,0.00021998,10]
[315399922,1709013041009,-326.58501441,0.00021998,10]
[315399924,1709013041018,-150.0,0.00021999,2]
[315399926,1709013041028,-3491.42498767,0.00021999,2]
[315399928,1709013041038,-207.55759471,0.00021999,2]
[315399930,1709013041048,-515.37585207,0.00021999,2]
[315399932,1709013041057,-200000.0,0.00021999,2]
[315399934,1709013041066,-300.0,0.00021999,2]
[315399936,1709013041075,-300.0,0.00021999,2]
[315399938,1709013041084,-300.0,0.00021999,2]
[315399940,1709013041094,-300.0,0.00021999,2]
[315399942,1709013041104,-300.0,0.00021999,2]
[315399944,1709013041112,-300.0,0.00021999,2]
[315399946,1709013041122,-300.0,0.00021999,2]
[315399948,1709013041131,-300.0,0.00021999,2]
[315399950,1709013041140,-300.0,0.00021999,2]
[315399952,1709013041151,-300.0,0.00021999,2]
[315399954,1709013041160,-309.15089949,0.00021999,2]
[315399956,1709013041170,-479.6437715,0.00021999,2]
[315399958,1709013041179,-312.60779563,0.00021999,2]
[315399960,1709013041188,-9698.40274341,0.00021999,2]
[315399962,1709013041198,-22126.0,0.00021999,2]
[315399964,1709013041207,-452.48867847,0.00022,2]
[315399966,1709013041216,-787776.96137023,0.00022,4]
[315399969,1709013041231,-1648.52504589,0.00022,4]
[315400002,1709013041532,-58778.22225883,0.00022,4]
[315400006,1709013041555,-962.775,0.00022,4]
[315400008,1709013041566,-1396.245,0.00022,4]
[315400042,1709013041869,-15610.9484666,0.00022,4]
[315400044,1709013041886,-37084.60148735,0.00022,4]
[315400047,1709013041901,-39773.34829768,0.00022,4]
[315400071,1709013042116,-11819.346747,0.00022,4]
[315400300,1709013044330,-2297.0,0.00021753,2]
[315400302,1709013044339,-157.32926696,0.00021976,2]
[315400304,1709013044348,-2549.94263304,0.00022,4]
[315400306,1709013044359,-2670.735627,0.00022,4]
[315400308,1709013044372,-5954.30211788,0.00022,4]
[315400310,1709013044383,-1175.26685339,0.00022,4]
[315400313,1709013044395,-10613.48865541,0.00022,4]
[315400315,1709013044407,-819.5968044,0.00022,4]
[315400317,1709013044419,-43450.0671104,0.00022,4]
[315400390,1709013045757,-213.41024934,0.000219,2]
[315400391,1709013045766,-518.49037404,0.00022,4]
[315400392,1709013045816,-1209.56013826,0.00022,4]
[315400393,1709013045828,-650.57492534,0.00022,4]
[315400394,1709013045840,-280.21103288,0.00022,4]
[315400395,1709013045878,-16867.4178104,0.00022,4]
[315400396,1709013045888,-233.3743857,0.00022,2]
[315400397,1709013045899,-11731.21,0.00022,2]
[315400398,1709013045909,-5722.491558,0.00022,2]
[315400399,1709013045918,-15895.8098832,0.00022,2]
[315400400,1709013045927,-1268.41799628,0.00022,3]
[315400401,1709013045938,-500.0,0.00022,2]
[315400402,1709013045947,-218.26886989,0.00022,7]
[315400403,1709013045956,-111291.44977238,0.00022,2]
[315400404,1709013045969,-2803.60159539,0.00022,2]
[315400405,1709013046053,-3712.32103723,0.00022,2]
[315400406,1709013046145,-64502.25893224,0.00022,2]
[315400407,1709013046154,-1500.0,0.00022,2]
[315400408,1709013046163,-1052.246372,0.00022,3]
[315400409,1709013046172,-196319.55046816,0.00022,7]
[315400416,1709013081599,225.21653048,9e-05,2]
[315400417,1709013081618,189.02523373,9e-05,2]
[315400418,1709013081638,33.93454332,9e-05,2]
[315400419,1709013092746,124.4613785,0.0001,2]
[315400420,1709013092768,201.0,0.0001,2]
[315400421,1709013092788,1117.0378066,0.0001,2]
[315400423,1709013102730,701.55,0.00015301,2]
[315400424,1709013147228,1743.76716646,0.00015,2]
[315400425,1709013149870,155.0,0.00015301,2]
[315400426,1709013167883,155.0,0.00015301,2]
[315400427,1709013174534,-538.96083626,0.000155,2]
[315400428,1709013174560,-275.0,0.00015759,2]
[315400429,1709013186456,155.0,0.00015301,2]
[315400430,1709013194593,212.52328306,0.0001305,2]
[315400431,1709013205881,155.0,0.00015759,2]
[315400432,1709013225885,155.0,0.00015759,2]
[315400433,1709013226629,2577.05756055,0.000142,2]
[315400435,1709013243893,168.32264178,0.00015759,2]
[315400436,1709013264213,445.61321573,0.000137,2]
[315400442,1709014002405,200.59467822,0.00016915,2]
[315400444,1709014028201,-162.35267956,0.00018324,2]
[315400445,1709014040159,-206.39448503,0.00018323,2]
[315400446,1709014047100,-153.08374956,0.00018323,2]
[315400447,1709014047121,-49.85365867,0.00018324,2]
[315400448,1709014051147,-231.65167132,0.00018324,2]
[315400449,1709014052109,-159.17324347,0.00018324,2]
[315400450,1709014054091,-358.52874698,0.00018324,2]
[315400451,1709014054112,-773.46362712,0.00018616,2]
[315400452,1709014054133,-201.0,0.00019079,2]
[315400453,1709014054154,-127.35528044,0.0001947,2]
[315400459,1709014231902,-155.0,0.0001947,2]
[315400460,1709014231913,-159.77239075,0.000199,2]
[315400461,1709014231922,-359.47823459,0.00019998,2]
[315400462,1709014231933,-300.0,0.00019999,2]
[315400463,1709014231943,-150.0,0.00019999,2]
[315400465,1709014231952,-300.0,0.00019999,2]
[315400466,1709014231963,-93.42552756,0.0002,2]
[315400467,1709014231986,-943.85904979,0.0002,2]
[315400468,1709014231997,-784.33567135,0.0002,2]
[315400469,1709014232009,-1023.97622082,0.0002,2]
[315400470,1709014232020,-2557.68002998,0.0002,2]
[315400471,1709014232029,-150.45245636,0.0002,2]
[315400472,1709014232039,-344.44305127,0.0002,2]
[315400473,1709014232049,-159.7723907,0.00020005,2]
[315400474,1709014232058,-2490.61,0.00020059,2]
[315400475,1709014232067,-791.94,0.00020059,2]
[315400476,1709014232077,-159.7723907,0.00020111,2]
[315400477,1709014232086,-1560.70497056,0.00020111,2]
[315400478,1709014232118,-592.70929541,0.00020111,2]
[315400479,1709014232131,-241.87573403,0.00020111,2]
[315400480,1709014232141,-250.0,0.00020205,2]
[315400481,1709014232150,-500.0,0.00020209,2]
[315400482,1709014232160,-159.7723907,0.00020216,2]
[315400483,1709014232170,-150.0,0.00020229,2]
[315400484,1709014232179,-2154.15150268,0.00020229,2]
[315400485,1709014232191,-321.16565532,0.00020229,2]
[315400486,1709014232203,-391.73008624,0.00020229,2]
[315400487,1709014232227,-822.68451972,0.00020229,2]
[315400488,1709014232239,-421.05712372,0.00020229,2]
[315400489,1709014232253,-2965.66724333,0.00020229,2]
[315400490,1709014232265,-4722.84361666,0.00020229,2]
[315400491,1709014232282,-304.47,0.00020229,2]
[315400492,1709014232296,-1257.70416959,0.00020229,2]
[315400493,1709014232307,-3212.16575315,0.00020229,2]
[315400494,1709014232319,-886.21281162,0.00020229,2]
[315400495,1709014232343,-746.5274152,0.00020229,2]
[315400496,1709014232354,-5693.62010277,0.00020229,2]
[315400497,1709014232363,-162.05,0.00020242,2]
[315400498,1709014232372,-886.17,0.00020274,2]
[315400499,1709014232381,-500.0,0.00020296,2]
[315400500,1709014232391,-159.7723907,0.00020321,2]